[Event "Swedish Championship U20 2022"]
[Site "Uppsala"]
[Date "2022.07.08"]
[Round "7.1"]
[White "Seo, Jung Hyun"]
[Black "Grahn, Vidar"]
[Result "0-1"]
[ECO "B36"]
[WhiteElo "2102"]
[BlackElo "2003"]
[Annotator "NA RC"]
[PlyCount "124"]
[EventDate "2022.07.01"]
[EventType "tourn"]
[EventCountry "SWE"]
[SourceTitle "playchess.com"]
[Source "ChessBase"]
[SourceQuality "1"]
[TimeControl "40/5400+30:1800+30"]

1. e4 {[%emt 0:01:07]} c5 {[%emt 0:00:04]} 2. Nf3 {[%emt 0:00:05]} Nc6 {[%emt 0:00:06]} 3. d4 {[%emt 0:00:07]} cxd4 {[%emt 0:00:09]} 4. Nxd4 {[%emt 0:00:06]} g6 {[%emt 0:00:03]} 5. c4 {[%emt 0:00:07]} Nf6 {[%emt 0:00:03]} 6. Nc3 {[%emt 0:00:07]} d6 {[%emt 0:00:03]} 7. f3 {[%emt 0:00:07]} Nxd4 {[%emt 0:00:03]} 8. Qxd4 {[%emt 0:00:05]} Bg7 {[%emt 0:00:04]} 9. Be3 {[%emt 0:00:05]} O-O {[%emt 0:00:08]} 10. Qd2 {[%emt 0:00:03]} Be6 {[%emt 0:00:08]} 11. Rc1 {[%emt 0:01:55]} Qa5 {[%emt 0:01:34]} 12. Bd3 {[%emt 0:00:32]} Rfc8 {[%emt 0:00:30]} 13. b3 {[%emt 0:00:43]} Nd7 {[%emt 0:04:51]} 14. Nd5 {[%emt 0:07:51]} Qxd2+ {[%emt 0:00:11]} 15. Kxd2 {[%emt 0:00:14]} Bxd5 {[%emt 0:00:11]} 16. cxd5 {[%emt 0:00:03]} Nc5 {[%emt 0:00:55]} 17. Be2 {[%emt 0:03:47]} a5 {[%emt 0:00:42]} 18. Rc2 {[%emt 0:07:40]} Rc7 {[%emt 0:00:29]} 19. Rhc1 {[%emt 0:01:27]} Rac8 {[%emt 0:00:07]} 20. Kd1 {[%emt 0:04:35]} Kf8 {[%emt 0:02:27]} 21. a3 {[%emt 0:01:43]} f5 {[%emt 0:01:47]} 22. b4 {[%emt 0:31:52]} axb4 {[%emt 0:01:13]} 23. axb4 {[%emt 0:01:54]} Na6 {[%emt 0:00:34]} 24. Rxc7 {[%emt 0:00:29]} Rxc7 {[%emt 0:00:07]} 25. Rxc7 {[%emt 0:00:01]} Nxc7 {[%emt 0:00:07]} 26. b5 {[%emt 0:00:15]} Bc3 {[%emt 0:02:43]} 27. Kc2 {[%emt 0:07:40]} Ba5 {[%emt 0:00:20]} 28. Kb3 {[%emt 0:01:14]} fxe4 {[%emt 0:01:25]} 29. Ka4 {[%emt 0:05:39]} exf3 {[%emt 0:02:58]} 30. Bxf3 {[%emt 0:00:00]} b6 {[%emt 0:00:16]} 31. h3 {[%emt 0:01:31]} Kf7 {[%emt 0:03:10]} 32. Be4 {[%emt 0:09:00]} e6 {[%emt 0:07:30]} 33. dxe6+ {[%emt 0:01:00]} Kxe6 {[%emt 0:01:25]} 34. Bc6 {[%emt 0:01:10]} Nd5 {[%emt 0:02:24]} 35. Bd4 {[%emt 0:02:08]} Ne7 {[%emt 0:01:58]} 36. Bf3 {[%emt 0:04:41]} Nf5 {[%emt 0:04:22]} 37. Bf2 {[%emt 0:00:53]} d5 {[%emt 0:01:09]} 38. g4 {[%emt 0:05:29]} Nd6 {[%emt 0:01:09]} 39. Bd4 {[%emt 0:00:01]} Ne4 {[%emt 0:00:56]} 40. Bg2 {[%emt 0:02:15]} Nd2 {[%emt 0:08:53]} 41. Ka3 {[%emt 0:05:55]} Nc4+ {[%emt 0:02:52]} 42. Kb3 {[%emt 0:00:20]} Be1 {[%emt 0:00:34]} 43. Kc2 {[%emt 0:00:50]} Bg3 {[%emt 0:01:04]} 44. Bf1 {[%emt 0:01:51]} Bc7 {[%emt 0:00:51]} 45. Bxc4 {[%emt 0:07:44]} dxc4 {[%emt 0:00:08]} 46. Kc3 {[%emt 0:00:02]} Kd5 {[%emt 0:00:09]} 47. g5 {[%emt 0:00:01]} Bd8 {[%emt 0:01:32]} 48. Bf6 {[%emt 0:01:07]} Bxf6+ {[%emt 0:02:59]} 49. gxf6 {[%emt 0:00:05]} Ke6 {[%emt 0:00:04]} 50. Kxc4 {[%emt 0:00:09]} g5 {[%emt 0:00:18]} 51. f7 {[%emt 0:00:26]} Kxf7 {[%emt 0:00:04]} 52. Kd5 {[%emt 0:00:02]} h5 {[%emt 0:00:17]} 53. Kc6 {[%emt 0:00:09]} g4 {[%emt 0:00:06]} 54. hxg4 {[%emt 0:00:11]} hxg4 {[%emt 0:00:05]} 55. Kxb6 {[%emt 0:00:05]} g3 {[%emt 0:00:04]} 56. Kc7 {[%emt 0:00:12]} g2 {[%emt 0:00:03]} 57. b6 {[%emt 0:00:01]} g1=Q {[%emt 0:00:10]} 58. b7 {[%emt 0:00:02]} Qc5+ {[%emt 0:00:14]} 59. Kd8 {[%emt 0:00:06]} Qb6+ {[%emt 0:00:16]} 60. Kc8 {[%emt 0:00:04]} Qc6+ {[%emt 0:00:08]} 61. Kd8 {[%emt 0:00:20]} Ke6 {[%emt 0:00:39]} 62. b8=N {[%emt 0:00:19]} Qb7 {[%emt 0:00:07]} 0-1

[Event "Swedish Championship U20 2022"]
[Site "Uppsala"]
[Date "2022.07.08"]
[Round "7.2"]
[White "Rasti, Arvin"]
[Black "Soderstrom, Adrian"]
[Result "1/2-1/2"]
[ECO "D11"]
[WhiteElo "2136"]
[BlackElo "2292"]
[Annotator "RC"]
[PlyCount "31"]
[EventDate "2022.07.01"]
[EventType "tourn"]
[EventCountry "SWE"]
[SourceTitle "playchess.com"]
[Source "ChessBase"]
[SourceQuality "1"]
[TimeControl "40/5400+30:1800+30"]

1. d4 {[%emt 0:00:03]} d5 {[%emt 0:00:55]} 2. Nf3 {[%emt 0:00:20]} Nf6 {[%emt 0:00:03]} 3. c4 {[%emt 0:00:30]} c6 {[%emt 0:00:07]} 4. Qc2 {[%emt 0:00:21]} dxc4 {[%emt 0:00:13]} 5. e4 {[%emt 0:00:15]} b5 {[%emt 0:00:44]} 6. b3 {[%emt 0:01:14]} cxb3 {[%emt 0:03:17]} 7. axb3 {[%emt 0:00:09]} Bg4 {[%emt 0:01:34]} 8. Be3 {[%emt 0:11:30]} Bxf3 {[%emt 0:02:44]} 9. gxf3 {[%emt 0:00:09]} e6 {[%emt 0:02:53]} 10. Bd3 {[%emt 0:01:28]} Bb4+ {[%emt 0:09:52]} 11. Ke2 {[%emt 0:01:20]} Nh5 {[%emt 0:08:14]} 12. Nc3 {[%emt 0:10:30]} O-O {[%emt 0:12:15]} 13. Rhg1 {[%emt 0:03:33]} g6 {[%emt 0:10:11]} 14. Rg4 {[%emt 0:12:04]} Kh8 {[%emt 0:07:08]} 15. Bh6 {[%emt 0:10:55]} Re8 {[%emt 0:04:24]} 16. e5 {[%emt 0:02:15]} 1/2-1/2

[Event "Swedish Championship U20 2022"]
[Site "Uppsala"]
[Date "2022.07.08"]
[Round "7.3"]
[White "Nord, Alexander"]
[Black "Torngren, Gustav"]
[Result "1-0"]
[ECO "A43"]
[WhiteElo "2200"]
[BlackElo "2273"]
[Annotator "RC"]
[PlyCount "93"]
[EventDate "2022.07.01"]
[EventType "tourn"]
[EventCountry "SWE"]
[SourceTitle "playchess.com"]
[Source "ChessBase"]
[SourceQuality "1"]
[TimeControl "40/5400+30:1800+30"]

1. d4 {[%emt 0:00:10]} Nf6 {[%emt 0:09:33]} 2. Nf3 {[%emt 0:00:12]} c5 {[%emt 0:03:42]} 3. d5 {[%emt 0:00:33]} e6 {[%emt 0:00:01]} 4. Nc3 {[%emt 0:00:25]} exd5 {[%emt 0:00:17]} 5. Nxd5 {[%emt 0:00:20]} Nxd5 {[%emt 0:00:03]} 6. Qxd5 {[%emt 0:00:09]} Nc6 {[%emt 0:00:05]} 7. e4 {[%emt 0:04:26]} Nb4 {[%emt 0:09:43]} 8. Qd1 {[%emt 0:04:16]} d5 {[%emt 0:00:37]} 9. exd5 {[%emt 0:08:51]} Qxd5 {[%emt 0:00:32]} 10. Qxd5 {[%emt 0:03:33]} Nxd5 {[%emt 0:01:20]} 11. Bd2 {[%emt 0:00:37]} f6 {[%emt 0:19:27]} 12. O-O-O {[%emt 0:05:55]} Be6 {[%emt 0:18:10]} 13. Bc4 {[%emt 0:15:55]} Kf7 {[%emt 0:01:34]} 14. Rhe1 {[%emt 0:00:49]} Rd8 {[%emt 0:01:13]} 15. a4 {[%emt 0:09:09]} Nc7 {[%emt 0:09:34]} 16. Bxe6+ {[%emt 0:03:58]} Nxe6 {[%emt 0:00:02]} 17. Be3 {[%emt 0:00:21]} Be7 {[%emt 0:00:39]} 18. Nd2 {[%emt 0:04:18]} h5 {[%emt 0:00:01]} 19. Nc4 {[%emt 0:01:22]} b6 {[%emt 0:02:07]} 20. c3 {[%emt 0:02:08]} g5 {[%emt 0:00:43]} 21. Rxd8 {[%emt 0:01:01]} Rxd8 {[%emt 0:00:15]} 22. Rd1 {[%emt 0:00:31]} Ng7 {[%emt 0:11:39]} 23. Rxd8 {[%emt 0:01:30]} Bxd8 {[%emt 0:00:01]} 24. h3 {[%emt 0:01:08]} Ke6 {[%emt 0:01:38]} 25. Kd2 {[%emt 0:04:06]} Kd5 {[%emt 0:00:01]} 26. Kd3 {[%emt 0:02:04]} Bc7 {[%emt 0:01:16]} 27. g4 {[%emt 0:06:37]} h4 {[%emt 0:00:58]} 28. Bd2 {[%emt 0:00:22]} Ne6 {[%emt 0:01:56]} 29. Ne3+ {[%emt 0:00:54]} Kc6 {[%emt 0:00:47]} 30. Ng2 {[%emt 0:01:01]} b5 {[%emt 0:04:57]} 31. Ke4 {[%emt 0:08:20]} c4 {[%emt 0:00:12]} 32. Kf5 {[%emt 0:03:14]} Nc5 {[%emt 0:00:02]} 33. axb5+ {[%emt 0:01:23]} Kxb5 {[%emt 0:00:01]} 34. f4 {[%emt 0:01:34]} gxf4 {[%emt 0:03:45]} 35. Bxf4 {[%emt 0:00:20]} Bd8 {[%emt 0:00:30]} 36. Nxh4 {[%emt 0:02:30]} Nd3 {[%emt 0:00:22]} 37. Ng6 {[%emt 0:01:55]} Ba5 {[%emt 0:00:45]} 38. h4 {[%emt 0:01:24]} Bxc3 {[%emt 0:00:24]} 39. bxc3 {[%emt 0:00:40]} a5 {[%emt 0:00:01]} 40. h5 {[%emt 0:00:10]} a4 {[%emt 0:00:20]} 41. Bd6 {[%emt 0:09:10]} Nc5 {[%emt 0:02:47]} 42. h6 {[%emt 0:00:44]} a3 {[%emt 0:00:14]} 43. h7 {[%emt 0:00:22]} a2 {[%emt 0:00:06]} 44. h8=Q {[%emt 0:00:12]} a1=N {[%emt 0:00:10]} 45. Qb8+ {[%emt 0:00:12]} Kc6 {[%emt 0:00:03]} 46. Qc7+ {[%emt 0:00:06]} Kd5 {[%emt 0:00:05]} 47. Qxc5# {[%emt 0:00:05]} 1-0

[Event "Swedish Championship U20 2022"]
[Site "Uppsala"]
[Date "2022.07.08"]
[Round "7.4"]
[White "Ostlund, Joar"]
[Black "Olsson, William"]
[Result "1/2-1/2"]
[ECO "D43"]
[WhiteElo "2222"]
[BlackElo "2284"]
[Annotator "RC"]
[PlyCount "76"]
[EventDate "2022.07.01"]
[EventType "tourn"]
[EventCountry "SWE"]
[SourceTitle "playchess.com"]
[Source "ChessBase"]
[SourceQuality "1"]
[TimeControl "40/5400+30:1800+30"]

1. d4 {[%emt 0:00:03]} d5 {[%emt 0:00:10]} 2. c4 {[%emt 0:00:08]} c6 {[%emt 0:00:04]} 3. Nf3 {[%emt 0:00:17]} Nf6 {[%emt 0:00:03]} 4. Nc3 {[%emt 0:00:11]} e6 {[%emt 0:00:04]} 5. Bg5 {[%emt 0:00:13]} h6 {[%emt 0:00:05]} 6. Bxf6 {[%emt 0:00:08]} Qxf6 {[%emt 0:00:04]} 7. e3 {[%emt 0:00:11]} Nd7 {[%emt 0:00:03]} 8. Bd3 {[%emt 0:00:08]} dxc4 {[%emt 0:00:06]} 9. Bxc4 {[%emt 0:00:13]} Bd6 {[%emt 0:00:06]} 10. O-O {[%emt 0:00:07]} Qe7 {[%emt 0:00:03]} 11. Qc2 {[%emt 0:00:09]} O-O {[%emt 0:01:11]} 12. Rfd1 {[%emt 0:00:07]} Bc7 {[%emt 0:17:59]} 13. Bb3 {[%emt 0:08:37]} Nb6 {[%emt 0:11:04]} 14. Rac1 {[%emt 0:03:36]} Rd8 {[%emt 0:02:12]} 15. e4 {[%emt 0:05:49]} Bd7 {[%emt 0:08:58]} 16. e5 {[%emt 0:04:47]} Nd5 {[%emt 0:01:58]} 17. Bxd5 {[%emt 0:02:39]} exd5 {[%emt 0:00:20]} 18. Nxd5 {[%emt 0:00:16]} cxd5 {[%emt 0:00:36]} 19. Qxc7 {[%emt 0:00:10]} Qe6 {[%emt 0:00:06]} 20. Qa5 {[%emt 0:16:42]} Qg4 {[%emt 0:06:12]} 21. Qb4 {[%emt 0:06:36]} b6 {[%emt 0:02:54]} 22. h3 {[%emt 0:05:28]} Qg6 {[%emt 0:02:48]} 23. Kh2 {[%emt 0:00:58]} Rdc8 {[%emt 0:01:32]} 24. Qe7 {[%emt 0:10:57]} Qf5 {[%emt 0:02:33]} 25. Kg1 {[%emt 0:04:06]} Rc2 {[%emt 0:05:05]} 26. Rxc2 {[%emt 0:00:55]} Qxc2 {[%emt 0:00:08]} 27. Rd2 {[%emt 0:00:21]} Qc6 {[%emt 0:00:47]} 28. Qa3 {[%emt 0:04:50]} Rc8 {[%emt 0:01:06]} 29. Qb3 {[%emt 0:04:29]} Bf5 {[%emt 0:03:30]} 30. Ne1 {[%emt 0:02:35]} Qd7 {[%emt 0:02:06]} 31. Nd3 {[%emt 0:01:58]} Rc4 {[%emt 0:01:17]} 32. Nf4 {[%emt 0:00:55]} Qc6 {[%emt 0:04:49]} 33. Kh2 {[%emt 0:01:34]} a5 {[%emt 0:04:26]} 34. Qf3 {[%emt 0:04:07]} Be4 {[%emt 0:02:14]} 35. Qg4 {[%emt 0:00:17]} Kh7 {[%emt 0:05:47]} 36. e6 {[%emt 0:06:37]} fxe6 {[%emt 0:03:43]} 37. Nxe6 {[%emt 0:00:26]} Qd6+ {[%emt 0:00:25]} 38. g3 {[%emt 0:00:39]} g6 {[%emt 0:10:16]} 1/2-1/2

[Event "Swedish Championship U20 2022"]
[Site "Uppsala"]
[Date "2022.07.08"]
[Round "7.5"]
[White "Wernberg, Hugo"]
[Black "Falkevall, Axel"]
[Result "1/2-1/2"]
[ECO "E73"]
[WhiteElo "2316"]
[BlackElo "2275"]
[Annotator "RC"]
[PlyCount "46"]
[EventDate "2022.07.01"]
[EventType "tourn"]
[EventCountry "SWE"]
[SourceTitle "playchess.com"]
[Source "ChessBase"]
[SourceQuality "1"]
[TimeControl "40/5400+30:1800+30"]

1. c4 {[%emt 0:00:04]} Nf6 {[%emt 0:00:20]} 2. Nc3 {[%emt 0:00:13]} g6 {[%emt 0:00:24]} 3. e4 {[%emt 0:00:36]} d6 {[%emt 0:00:08]} 4. d4 {[%emt 0:00:15]} Bg7 {[%emt 0:00:06]} 5. Be2 {[%emt 0:00:14]} O-O {[%emt 0:00:21]} 6. Be3 {[%emt 0:00:13]} e5 {[%emt 0:01:14]} 7. d5 {[%emt 0:00:40]} Na6 {[%emt 0:00:18]} 8. g4 {[%emt 0:01:30]} Nc5 {[%emt 0:01:27]} 9. f3 {[%emt 0:02:58]} h5 {[%emt 0:03:02]} 10. g5 {[%emt 0:07:15]} Nh7 {[%emt 0:00:50]} 11. h4 {[%emt 0:04:29]} f6 {[%emt 0:01:03]} 12. Qd2 {[%emt 0:07:29]} fxg5 {[%emt 0:00:39]} 13. hxg5 {[%emt 0:00:17]} Rf4 {[%emt 0:01:21]} 14. Bxf4 {[%emt 0:06:28]} exf4 {[%emt 0:00:26]} 15. Qxf4 {[%emt 0:08:59]} Nxg5 {[%emt 0:00:25]} 16. O-O-O {[%emt 0:02:28]} Be5 {[%emt 0:05:20]} 17. Qe3 {[%emt 0:05:20]} Qf6 {[%emt 0:02:15]} 18. Kc2 {[%emt 0:08:07]} a5 {[%emt 0:11:17]} 19. Bf1 {[%emt 0:09:58]} Bd7 {[%emt 0:08:44]} 20. Bg2 {[%emt 0:10:56]} Bf4 {[%emt 0:20:02]} 21. Qf2 {[%emt 0:04:46]} Be5 {[%emt 0:05:53]} 22. Qe3 {[%emt 0:01:18]} Bf4 {[%emt 0:01:15]} 23. Qf2 {[%emt 0:00:15]} Be5 {[%emt 0:00:09]} 1/2-1/2

[Event "Swedish Championship U20 2022"]
[Site "Uppsala"]
[Date "2022.07.09"]
[Round "8.1"]
[White "Falkevall, Axel"]
[Black "Olsson, William"]
[Result "1/2-1/2"]
[ECO "B22"]
[WhiteElo "2275"]
[BlackElo "2284"]
[Annotator "RC"]
[PlyCount "128"]
[EventDate "2022.07.01"]
[EventType "tourn"]
[EventCountry "SWE"]
[SourceTitle "playchess.com"]
[Source "ChessBase"]
[SourceQuality "1"]
[TimeControl "40/5400+30:1800+30"]

1. e4 {[%emt 0:00:04]} c5 {[%emt 0:00:05]} 2. c3 {[%emt 0:00:14]} Nf6 {[%emt 0:00:05]} 3. e5 {[%emt 0:00:06]} Nd5 {[%emt 0:00:05]} 4. d4 {[%emt 0:00:05]} cxd4 {[%emt 0:00:08]} 5. Nf3 {[%emt 0:00:11]} e6 {[%emt 0:00:05]} 6. cxd4 {[%emt 0:00:11]} d6 {[%emt 0:00:08]} 7. Bc4 {[%emt 0:00:22]} Nc6 {[%emt 0:00:07]} 8. O-O {[%emt 0:00:08]} Be7 {[%emt 0:00:05]} 9. Qe2 {[%emt 0:00:11]} O-O {[%emt 0:00:09]} 10. Qe4 {[%emt 0:00:52]} Ndb4 {[%emt 0:05:11]} 11. exd6 {[%emt 0:00:14]} Qxd6 {[%emt 0:00:33]} 12. Nc3 {[%emt 0:02:16]} Na5 {[%emt 0:04:49]} 13. Be2 {[%emt 0:08:07]} Nd5 {[%emt 0:06:18]} 14. Bd3 {[%emt 0:06:18]} f5 {[%emt 0:09:07]} 15. Qe2 {[%emt 0:04:45]} a6 {[%emt 0:04:17]} 16. Re1 {[%emt 0:05:19]} b5 {[%emt 0:04:22]} 17. Nxd5 {[%emt 0:15:29]} Qxd5 {[%emt 0:00:08]} 18. Bf4 {[%emt 0:08:16]} Bd7 {[%emt 0:08:27]} 19. Rad1 {[%emt 0:14:00]} Rae8 {[%emt 0:12:22]} 20. Ne5 {[%emt 0:07:55]} Bf6 {[%emt 0:03:05]} 21. Nxd7 {[%emt 0:01:25]} Qxd7 {[%emt 0:00:08]} 22. Be5 {[%emt 0:03:04]} Nc6 {[%emt 0:06:15]} 23. Bc2 {[%emt 0:08:21]} Nb4 {[%emt 0:02:36]} 24. Bb3 {[%emt 0:00:42]} Nd5 {[%emt 0:00:17]} 25. Rc1 {[%emt 0:02:10]} Bg5 {[%emt 0:07:56]} 26. Rcd1 {[%emt 0:02:59]} Rc8 {[%emt 0:03:33]} 27. Rd3 {[%emt 0:01:18]} Bf6 {[%emt 0:00:41]} 28. h3 {[%emt 0:01:39]} Rc6 {[%emt 0:03:32]} 29. Qf3 {[%emt 0:01:24]} Be7 {[%emt 0:06:46]} 30. Qh5 {[%emt 0:02:15]} Rf7 {[%emt 0:00:43]} 31. Red1 {[%emt 0:01:12]} Bf6 {[%emt 0:02:33]} 32. Qf3 {[%emt 0:01:00]} Rf8 {[%emt 0:00:39]} 33. a3 {[%emt 0:01:08]} Be7 {[%emt 0:02:31]} 34. Qe2 {[%emt 0:00:39]} Bf6 {[%emt 0:02:37]} 35. Re1 {[%emt 0:00:49]} Be7 {[%emt 0:01:04]} 36. Qf3 {[%emt 0:00:42]} Rd8 {[%emt 0:01:12]} 37. Qh5 {[%emt 0:00:52]} Rf8 {[%emt 0:01:13]} 38. Kh2 {[%emt 0:00:57]} Bf6 {[%emt 0:00:26]} 39. Qf3 {[%emt 0:00:27]} Be7 {[%emt 0:00:57]} 40. Kg1 {[%emt 0:00:50]} Bg5 {[%emt 0:02:24]} 41. Qh5 {[%emt 0:06:58]} Bf6 {[%emt 0:03:52]} 42. Rd2 {[%emt 0:06:47]} Be7 {[%emt 0:03:51]} 43. Rde2 {[%emt 0:02:23]} Rd8 {[%emt 0:02:50]} 44. Qf3 {[%emt 0:02:02]} Bf8 {[%emt 0:05:21]} 45. Kh1 {[%emt 0:01:41]} Qf7 {[%emt 0:01:11]} 46. Rg1 {[%emt 0:02:48]} Rdc8 {[%emt 0:03:43]} 47. Rd2 {[%emt 0:02:09]} Rc1 {[%emt 0:02:31]} 48. Rxc1 {[%emt 0:01:04]} Rxc1+ {[%emt 0:00:06]} 49. Kh2 {[%emt 0:00:17]} a5 {[%emt 0:01:00]} 50. Rc2 {[%emt 0:03:53]} Rxc2 {[%emt 0:00:26]} 51. Bxc2 {[%emt 0:00:05]} g6 {[%emt 0:02:22]} 52. Qe2 {[%emt 0:01:44]} Qd7 {[%emt 0:01:47]} 53. Bb3 {[%emt 0:02:15]} Bg7 {[%emt 0:03:02]} 54. Bxg7 {[%emt 0:00:38]} Kxg7 {[%emt 0:00:10]} 55. Qe5+ {[%emt 0:00:12]} Kf7 {[%emt 0:00:15]} 56. Bxd5 {[%emt 0:01:37]} Qxd5 {[%emt 0:03:44]} 57. Qc7+ {[%emt 0:01:35]} Kg8 {[%emt 0:02:28]} 58. Qb8+ {[%emt 0:00:07]} Kg7 {[%emt 0:00:32]} 59. Qa7+ {[%emt 0:00:06]} Kh6 {[%emt 0:01:02]} 60. Qxa5 {[%emt 0:01:14]} Qxd4 {[%emt 0:00:05]} 61. Qxb5 {[%emt 0:00:48]} Qxf2 {[%emt 0:01:49]} 62. Qe5 {[%emt 0:00:29]} f4 {[%emt 0:00:37]} 63. Qxe6 {[%emt 0:01:06]} Qxb2 {[%emt 0:00:41]} 64. Qe4 {[%emt 0:00:32]} Qxa3 {[%emt 0:00:19]} 1/2-1/2

[Event "Swedish Championship U20 2022"]
[Site "Uppsala"]
[Date "2022.07.09"]
[Round "8.2"]
[White "Torngren, Gustav"]
[Black "Seo, Jung Hyun"]
[Result "1/2-1/2"]
[ECO "D30"]
[WhiteElo "2273"]
[BlackElo "2102"]
[Annotator "RC"]
[PlyCount "54"]
[EventDate "2022.07.01"]
[EventType "tourn"]
[EventCountry "SWE"]
[SourceTitle "playchess.com"]
[Source "ChessBase"]
[SourceQuality "1"]
[TimeControl "40/5400+30:1800+30"]

1. c4 {[%emt 0:00:56]} e6 {[%emt 0:00:27]} 2. Nf3 {[%emt 0:00:22]} d5 {[%emt 0:00:09]} 3. d4 {[%emt 0:00:08]} Nf6 {[%emt 0:00:10]} 4. Bg5 {[%emt 0:05:00]} Be7 {[%emt 0:00:18]} 5. e3 {[%emt 0:00:21]} Nbd7 {[%emt 0:00:10]} 6. Nbd2 {[%emt 0:00:30]} h6 {[%emt 0:00:11]} 7. Bf4 {[%emt 0:02:16]} c5 {[%emt 0:00:10]} 8. dxc5 {[%emt 0:04:59]} Nxc5 {[%emt 0:00:32]} 9. Be2 {[%emt 0:01:19]} b6 {[%emt 0:01:43]} 10. O-O {[%emt 0:01:31]} O-O {[%emt 0:00:08]} 11. Rc1 {[%emt 0:12:22]} a5 {[%emt 0:12:33]} 12. Nd4 {[%emt 0:06:55]} Ba6 {[%emt 0:04:31]} 13. Nc6 {[%emt 0:01:06]} Qe8 {[%emt 0:00:27]} 14. Nxe7+ {[%emt 0:00:06]} Qxe7 {[%emt 0:00:04]} 15. cxd5 {[%emt 0:00:19]} Nxd5 {[%emt 0:02:19]} 16. Bg3 {[%emt 0:02:05]} Nb4 {[%emt 0:04:07]} 17. Bxa6 {[%emt 0:01:18]} Rxa6 {[%emt 0:00:16]} 18. Qe2 {[%emt 0:00:44]} Rd8 {[%emt 0:01:44]} 19. Nb3 {[%emt 0:11:12]} Nxb3 {[%emt 0:18:43]} 20. axb3 {[%emt 0:01:05]} Ra7 {[%emt 0:00:13]} 21. Qb5 {[%emt 0:06:15]} Rd5 {[%emt 0:03:08]} 22. Rc8+ {[%emt 0:00:34]} Kh7 {[%emt 0:01:17]} 23. Qc4 {[%emt 0:00:40]} Rc5 {[%emt 0:02:09]} 24. Rxc5 {[%emt 0:03:17]} Qxc5 {[%emt 0:02:29]} 25. Qxc5 {[%emt 0:01:16]} bxc5 {[%emt 0:00:02]} 26. Rc1 {[%emt 0:00:14]} Rd7 {[%emt 0:03:50]} 27. Kf1 {[%emt 0:02:22]} Rd3 {[%emt 0:02:05]} 1/2-1/2

[Event "Swedish Championship U20 2022"]
[Site "Uppsala"]
[Date "2022.07.09"]
[Round "8.3"]
[White "Soderstrom, Adrian"]
[Black "Ostlund, Joar"]
[Result "1/2-1/2"]
[ECO "D37"]
[WhiteElo "2292"]
[BlackElo "2222"]
[Annotator "RC"]
[PlyCount "81"]
[EventDate "2022.07.01"]
[EventType "tourn"]
[EventCountry "SWE"]
[SourceTitle "playchess.com"]
[Source "ChessBase"]
[SourceQuality "1"]
[TimeControl "40/5400+30:1800+30"]

1. d4 {[%emt 0:01:02]} Nf6 {[%emt 0:00:12]} 2. Nf3 {[%emt 0:00:30]} d5 {[%emt 0:00:21]} 3. c4 {[%emt 0:00:09]} e6 {[%emt 0:00:10]} 4. Nc3 {[%emt 0:00:16]} Be7 {[%emt 0:00:24]} 5. Bf4 {[%emt 0:00:33]} O-O {[%emt 0:00:33]} 6. e3 {[%emt 0:00:16]} Nbd7 {[%emt 0:01:18]} 7. c5 {[%emt 0:00:22]} Nh5 {[%emt 0:00:48]} 8. Be5 {[%emt 0:00:31]} f6 {[%emt 0:14:07]} 9. Bg3 {[%emt 0:00:41]} c6 {[%emt 0:03:20]} 10. Bd3 {[%emt 0:07:16]} g6 {[%emt 0:07:42]} 11. b4 {[%emt 0:11:21]} b6 {[%emt 0:14:26]} 12. O-O {[%emt 0:03:24]} Nxg3 {[%emt 0:08:46]} 13. hxg3 {[%emt 0:00:20]} a5 {[%emt 0:01:43]} 14. a3 {[%emt 0:03:24]} Ba6 {[%emt 0:06:47]} 15. e4 {[%emt 0:09:07]} Bxd3 {[%emt 0:04:41]} 16. Qxd3 {[%emt 0:00:36]} Qc7 {[%emt 0:00:44]} 17. exd5 {[%emt 0:01:41]} exd5 {[%emt 0:00:41]} 18. Rae1 {[%emt 0:01:12]} Rfe8 {[%emt 0:01:46]} 19. Re3 {[%emt 0:02:22]} axb4 {[%emt 0:02:49]} 20. axb4 {[%emt 0:00:20]} bxc5 {[%emt 0:06:20]} 21. bxc5 {[%emt 0:00:22]} f5 {[%emt 0:02:40]} 22. Re6 {[%emt 0:24:38]} Nf8 {[%emt 0:04:45]} 23. Re3 {[%emt 0:04:10]} Nd7 {[%emt 0:00:18]} 24. g4 {[%emt 0:01:50]} fxg4 {[%emt 0:01:53]} 25. Nh2 {[%emt 0:01:28]} Nf6 {[%emt 0:02:13]} 26. Rfe1 {[%emt 0:01:20]} Qd7 {[%emt 0:01:19]} 27. Re5 {[%emt 0:07:58]} Bf8 {[%emt 0:00:38]} 28. g3 {[%emt 0:08:11]} Bg7 {[%emt 0:02:20]} 29. Qd2 {[%emt 0:01:50]} Qf7 {[%emt 0:02:38]} 30. Qe2 {[%emt 0:01:21]} h5 {[%emt 0:01:36]} 31. Qe3 {[%emt 0:00:29]} Ne4 {[%emt 0:04:15]} 32. Rxe8+ {[%emt 0:01:41]} Rxe8 {[%emt 0:00:13]} 33. Nf1 {[%emt 0:00:48]} Kf8 {[%emt 0:01:35]} 34. Ne2 {[%emt 0:00:32]} Kg8 {[%emt 0:01:57]} 35. Nf4 {[%emt 0:03:46]} Rf8 {[%emt 0:00:33]} 36. Nd2 {[%emt 0:01:13]} g5 {[%emt 0:00:51]} 37. Nd3 {[%emt 0:00:24]} Bxd4 {[%emt 0:00:55]} 38. Qxd4 {[%emt 0:00:13]} Nxd2 {[%emt 0:00:05]} 39. Ne5 {[%emt 0:00:22]} Nf3+ {[%emt 0:00:43]} 40. Nxf3 {[%emt 0:00:02]} gxf3 {[%emt 0:00:51]} 41. Re5 {[%emt 0:32:02]} 1/2-1/2